Cogmind - Beta 13 @@@ ROGUE MODE // 2024.07.10 @ 21:54:43 Player: celerysam Result: Destroyed by P-60 Hacker with Shock Rifle Performance ------------- Evolutions (3) 1500 Regions Visited (4) 800 Robots Destroyed (26) 130 Value Destroyed (569) 569 Prototype IDs (1) 20 Alien Tech Used (0) 0 Bonus (0) 0 TOTAL SCORE: 3019 Bonus ------- None Cogmind --------- Core Integrity 0/700 Matter 219/300 Energy 75/100 System Corruption 3% Temperature Cool (0) Movement Core (200) Ox3 Location -7/Factory Parts ------- > --- POWER (2) -------- (None) > --- PROPULSION (6) --- (None) > --- UTILITY (3) ------ Improved Targeting Computer Advanced ECM Suite > --- WEAPON (2) ------- Arc Projector Heavy Flail > --- INVENTORY (5) ---- Improved Cooling System Mini Grenade Launcher Peak State ------------ > --- POWER ------------ Light Nuclear Core Micro Nuclear Core > --- PROPULSION ------- Aluminum Leg Aluminum Leg Compact Wheel > --- UTILITY ---------- Improved Targeting Computer Advanced ECM Suite Hacking Suite > --- WEAPON ----------- Flak Gun Heavy Mace > --- INVENTORY -------- Light Deuterium Engine Improved Cooling System Pulse Rifle Mini Grenade Launcher Blade Saw [Rating: 27] Favorites ----------- Power Light Deuterium Engine Engine Light Deuterium Engine Power Core Light Nuclear Core Propulsion Flight Unit Leg Aluminum Leg Wheel Wheel Hover Unit Hover Unit Flight Unit Flight Unit Utility Hacking Suite Device Advanced ECM Suite Storage Small Storage Unit Processor Improved Targeting Computer Hackware Hacking Suite Weapon Heavy Mace Energy Gun Small Laser Ballistic Gun Assault Rifle Launcher Improved Grenade Launcher Special Weapon Plasma Cutter Impact Weapon Heavy Mace Slashing Weapon Blade Saw Special Melee Weapon Improved Datajack Build | -11 -10 -9 -8 -7 ------- Run | Yrd Mat Mat Mat Fac Slots Evolved 6 | . . 2 2 2 Power 1 | . . . 1 . Propulsion 4 | . . 2 . 2 Utility 1 | . . . 1 . Weapon . | . . . . . Parts Attached 66 | 6 18 10 17 15 Power 16 | 1 6 1 3 5 Engine 13 | 1 6 1 3 2 Core 3 | . . . . 3 Reactor . | . . . . . Propulsion 23 | 2 6 7 5 3 Treads . | . . . . . Leg 5 | . 2 . 1 2 Wheel 3 | 2 . . . 1 Hover 4 | . 4 . . . Flight 11 | . . 7 4 . Utility 7 | 1 2 . 3 1 Device 3 | . . . 2 1 Storage 2 | 1 1 . . . Processor 1 | . . . 1 . Hackware 1 | . 1 . . . Protection . | . . . . . Artifact . | . . . . . Weapon 20 | 2 4 2 6 6 Energy Gun 8 | 1 2 . 2 3 Energy Cannon . | . . . . . Ballistic Gun 5 | 1 1 2 . 1 Ballistic Cannon . | . . . . . Launcher 2 | . . . 2 . Special Weapon 1 | . 1 . . . Impact Weapon 2 | . . . 1 1 Slashing Weapon 1 | . . . . 1 Piercing Weapon . | . . . . . Special Melee Weapon 1 | . . . 1 . Unidentified Prototypes 1 | . . 1 . . Parts Lost 35 | . 6 6 11 12 Power 10 | . 2 1 3 4 Propulsion 16 | . 2 4 7 3 Utility 2 | . . . 1 1 Weapon 7 | . 2 1 . 4 Highest Loss Streak 12 | . 5 6 10 12 To Critical Strikes . | . . . . . Average Slot Usage (%) 70 | . 89 74 69 53 Engine 8 | . 12 9 6 4 Core 1 | . . . . 3 Leg 3 | . 2 . 3 5 Wheel 2 | . 7 . . 1 Hover 5 | . 16 3 . . Flight 6 | . . 27 18 . Device 2 | . . . . 7 Storage 8 | . 18 11 7 . Processor 4 | . . . 8 7 Hackware 8 | . 7 11 9 6 Energy Gun 5 | . 10 4 2 3 Ballistic Gun 5 | . 10 7 1 1 Launcher 1 | . . . 2 1 Impact Weapon 3 | . . . 4 5 Naked Turns . | . . . . . Heaviest Build 21 | 13 16 15 16 21 Greatest Support 20 | 20 20 16 16 20 Greatest Overweight (x) 4 | . 2 3 3 4 Average Overweight (x) . | . . . . 1 Largest Inventory Capacity 8 | 8 8 8 8 5 Average Capacity 6 | 7 8 8 7 5 Most Carried 8 | 8 8 8 8 5 Average Carried 5 | 4 7 5 6 4 Final Capacity 8 | 8 8 8 5 5 Final Carried 8 | 6 8 7 4 2 Class Distribution -------------------- 62% | Mutant 24% | Scavenger-Mutant 13% | Scavenger-Sprinter Dominant Class ---------------- Mutant | -10/Materials Scavenger-Sprinter | -9/Materials Mutant | -8/Materials Mutant | -7/Factory Resources | -11 -10 -9 -8 -7 ----------- Run | Yrd Mat Mat Mat Fac Matter Collected 811 | 233 251 69 103 155 Remotely . | . . . . . Salvage Created 586 | . 250 95 43 198 Parts 43 | . 18 11 11 3 Haulers Intercepted . | . . . . . Recyclers Shooed . | . . . . . Parts Field Recycled . | . . . . . Retrieved Matter . | . . . . . Parts Self-Destructed . | . . . . . Prevented . | . . . . . Kills | -11 -10 -9 -8 -7 ------- Run | Yrd Mat Mat Mat Fac Combat Hostiles Destroyed 22 | . 6 4 6 6 Melee 3 | . . . 1 2 Guns 13 | . 5 4 1 3 Cannons 1 | . 1 . . . AOE 4 | . . . 4 . Classes Destroyed 8 | . 5 1 2 . Worker 1 | . 1 . . . Tunneler 1 | . . . 1 . Operator 1 | . 1 . . . Watcher 1 | . 1 . . . Swarmer 13 | . 3 3 4 3 Cutter 2 | . . . 2 . Grunt 6 | . 3 . . 3 Sentry 1 | . . 1 . . Best Kill Streak 5 | . 5 4 5 3 Combat Bots Only 4 | . 4 4 4 3 Max Kills in Single Turn 3 | . 1 1 3 1 Gunslinging . | . . . . . Exploded 3 | . . . 3 . Melee 1 | . . . 1 1 Uniques/NPCs Destroyed . | . . . . . Combat | -11 -10 -9 -8 -7 -------- Run | Yrd Mat Mat Mat Fac Hostile Shots Fired 513 | . 109 67 83 254 Missed 182 | . 31 27 22 102 Damage Taken 3843 | . 873 484 827 1659 Core 1338 | . 177 157 292 712 Absorbed by Shields . | . . . . . Core Remaining (%) 58 | 100 29 60 46 . Volleys Fired 75 | . 31 9 16 19 Largest 2 | . 2 2 1 1 Hottest 85 | . 60 85 63 63 Shots Fired 101 | . 55 11 16 19 Gun 93 | . 50 11 13 19 Cannon . | . . . . . Launcher 3 | . . . 3 . Special 5 | . 5 . . . Kinetic 41 | . 29 2 . 10 Thermal 52 | . 26 9 13 4 Explosive 3 | . . . 3 . Electromagnetic 5 | . . . . 5 Robot Hit Streak 12 | . 12 6 4 7 Robot Miss Streak 8 | . 5 1 1 8 Penetration Max . | . . . . . Secondary Targets 1 | . . 1 . . Max Gunslinging Chain 1 | . . 1 . . Shots Hit Robots 77 | . 36 9 11 21 Core Hits 45 | . 17 5 8 15 Critical Kills . | . . . . . Critical Parts Destroyed 1 | . . . 1 . Critical Strikes 4 | . . . 4 . Burn 3 | . . . 3 . Smash 1 | . . . 1 . Melee Attacks 13 | . . . 6 7 Impact 13 | . . . 6 7 Slashing . | . . . . . Piercing . | . . . . . Sneak Attacks 1 | . . . 1 . Combat Hostiles . | . . . . . Follow-up Attacks . | . . . . . Damage Inflicted 1494 | . 442 126 443 483 Guns 941 | . 418 126 166 231 Cannons . | . . . . . Explosions 185 | . . . 185 . Melee 344 | . . . 92 252 Ramming 3 | . 3 . . . Kinetic 464 | . 271 21 . 172 Thermal 489 | . 168 105 166 50 Explosive 185 | . . . 185 . Electromagnetic 9 | . . . . 9 Impact 344 | . . . 92 252 Slashing . | . . . . . Piercing . | . . . . . Highest Corruption 3 | . . . 1 3 Average Corruption 1 | . . . 1 2 Corruption Purged . | . . . . . Corruption Blocked . | . . . . . Effects 1 | . . . 1 . Matter Fused 1 | . . . 1 . Overload Shots . | . . . . . Overflow Damage 87 | . . . 50 37 Projectiles . | . . . . . Explosions . | . . . . . Melee 87 | . . . 50 37 Knockbacks 1 | . . . . 1 Impact 1 | . . . . 1 Kinetic . | . . . . . Secondary . | . . . . . Self-Inflicted Damage 1 | . 1 . . . Shots . | . . . . . Rammed 1 | . 1 . . . Targets Rammed 1 | . 1 . . . Kicked . | . . . . . Crushed . | . . . . . Highest Temperature 197 | . 77 197 102 18 Average Temperature 55 | . 31 116 45 7 Received Heat Transfer 858 | . 384 129 9 336 Siege Activations . | . . . . . Robots Corrupted . | . . . . . Combat Hostiles . | . . . . . Parts Fried 2 | . . . 1 1 Impact Corruptions 3 | . . . 2 1 Robots Melted . | . . . . . Combat Hostiles . | . . . . . Parts Melted . | . . . . . Heat Transferred 1386 | . 424 259 592 111 Parts Sabotaged . | . . . . . Parts Stolen . | . . . . . Parts Stripped . | . . . . . Power Chain Reactions . | . . . . . Alert | -11 -10 -9 -8 -7 ------- Run | Yrd Mat Mat Mat Fac Peak Influence 287 | . 198 170 287 194 Initial 109 | . . 70 78 109 Average 137 | . 119 142 166 151 Maximum Alert Level 1 | . . . 1 . Low Security (%) 93 | 100 100 100 69 100 Level 1 6 | . . . 30 . Level 2 . | . . . . . Level 3 . | . . . . . Level 4 . | . . . . . Level 5 . | . . . . . High Security . | . . . . . Max Security . | . . . . . Squads Dispatched 5 | . . . 1 4 Investigation 2 | . . . . 2 Extermination 1 | . . . . 1 Reinforcement 2 | . . . 1 1 Assault . | . . . . . Garrison . | . . . . . Intercept . | . . . . . Searches Triggered . | . . . . . Construction Impeded . | . . . . . Haulers Reinforced . | . . . . . Active Scanning Responses . | . . . . . Cargo Convoy Interrupts . | . . . . . Stealth | -11 -10 -9 -8 -7 --------- Run | Yrd Mat Mat Mat Fac Distress Signals 1 | . . 1 . . Communications Jammed . | . . . . . Distress Signals . | . . . . . Times Spotted 51 | . 13 14 11 13 Peak Tracking Total 10 | . 5 10 6 7 Tactical Retreats 4 | . 1 1 2 . Traps | -11 -10 -9 -8 -7 ------- Run | Yrd Mat Mat Mat Fac Traps Triggered 3 | . . . 1 2 Indirectly . | . . . . . Trap Hack Attempts . | . . . . . Triggered . | . . . . . Disarmed . | . . . . . Reprogrammed . | . . . . . Reused . | . . . . . Traps Extracted . | . . . . . Installed . | . . . . . Triggered . | . . . . . Machines | -11 -10 -9 -8 -7 ---------- Run | Yrd Mat Mat Mat Fac Machines Disabled . | . . . . . Max in Single Turn . | . . . . . Machines Repaired . | . . . . . Machines Dismantled . | . . . . . Machines Sabotaged . | . . . . . Overloaded Fab Kills . | . . . . . Hacking | -11 -10 -9 -8 -7 --------- Run | Yrd Mat Mat Mat Fac Machines Accessed 2 | . 1 . . 1 Terminals 1 | . 1 . . . Fabricators 1 | . . . . 1 Repair Stations . | . . . . . Recycling Units . | . . . . . Scanalyzers . | . . . . . Garrison Access . | . . . . . Total Hacks 4 | . 2 . . 2 Successful 3 | . 2 . . 1 Failed 1 | . . . . 1 Catastrophic . | . . . . . Database Lockouts . | . . . . . Manual 1 | . . . . 1 Terminals 2 | . 2 . . . Fabricators 2 | . . . . 2 Repair Stations . | . . . . . Recycling Units . | . . . . . Scanalyzers . | . . . . . Garrison Access . | . . . . . Terminal Hacks 2 | . 2 . . . Emergency Access Points 1 | . 1 . . . Terminal Index 1 | . 1 . . . Fabricator Hacks 1 | . . . . 1 Network Status 1 | . . . . 1 Repair Station Hacks . | . . . . . Recycling Unit Hacks . | . . . . . Scanalyzer . | . . . . . Garrison Access Hacks . | . . . . . Unauthorized Hacks . | . . . . . Terminals . | . . . . . Fabricators . | . . . . . Repair Stations . | . . . . . Recycling Units . | . . . . . Scanalyzers . | . . . . . Garrison Access . | . . . . . Data Cores Recovered 1 | . 1 . . . Used . | . . . . . Hacking Detections 2 | . 1 . . 1 Full Trace Events . | . . . . . Feedback Events . | . . . . . Feedback Blocked . | . . . . . Robot Schematics Acquired . | . . . . . Robots Built . | . . . . . Authchips . | . . . . . Time . | . . . . . Total Robot Build Rating . | . . . . . Part Schematics Acquired . | . . . . . Parts Built . | . . . . . Authchips . | . . . . . Time . | . . . . . Total Part Build Rating . | . . . . . Parts Repaired . | . . . . . Time . | . . . . . Parts Recycled . | . . . . . Recycled Matter . | . . . . . Retrieved Matter . | . . . . . Retrieved Components . | . . . . . Parts Scanalyzed . | . . . . . Part Schematics Acquired . | . . . . . Parts Damaged . | . . . . . Bothacking | -11 -10 -9 -8 -7 ------------ Run | Yrd Mat Mat Mat Fac Used RIF Installer . | . . . . . Robots Hacked . | . . . . . Non-combat . | . . . . . Combat . | . . . . . Robot Hacks Applied . | . . . . . Relay Couplers Released . | . . . . . Fabnet Peak Effective % . | . . . . . Robots Rewired . | . . . . . Allies Hacked . | . . . . . Hacks Repelled . | . . . . . Allies | -11 -10 -9 -8 -7 -------- Run | Yrd Mat Mat Mat Fac Total Allies . | . . . . . Largest Group . | . . . . . Highest-Rated Group . | . . . . . Highest-Rated Ally . | . . . . . Total Orders . | . . . . . Ally Attacks . | . . . . . Total Damage . | . . . . . Kills . | . . . . . Allies Corrupted . | . . . . . Allies Melted . | . . . . . Intel | -11 -10 -9 -8 -7 ------- Run | Yrd Mat Mat Mat Fac Robot Analysis Total . | . . . . . Derelict Logs Recovered . | . . . . . Drone Launches . | . . . . . Drone Recoveries . | . . . . . Exploration | -11 -10 -9 -8 -7 ------------- Run | Yrd Mat Mat Mat Fac Turns Passed 1110 | 53 320 104 238 395 Spaces Moved 922 | 47 219 154 305 197 Core 93 | 7 . 6 3 77 Treads . | . . . . . Legs 134 | . 10 . 37 87 Wheels 120 | 40 47 . . 33 Hover 162 | . 162 . . . Flight 413 | . . 148 265 . Fastest Speed 31 | 50 56 31 31 100 Average Speed 80 | 75 80 40 51 157 Slowest Speed 280 | 80 180 280 280 250 Overloaded Moves . | . . . . . Propulsion Burnouts . | . . . . . Robots Hopped 4 | . . 2 2 . Cave-ins Triggered . | . . . . . Exploration Rate (%) 25 | 4 63 24 28 8 Regions Visited 4 Branch Regions . Pre-discovered Areas . | . . . . . Known Exits Taken . | . . . . . Unknown Exits Taken 4 | 1 1 1 1 . Scrap Searched . | . . . . . Spaces Dug . | . . . . . Terrain Destroyed 32 | . . . 32 . Melee . | . . . . . Projectile . | . . . . . AOE 32 | . . . 32 . Terrain Rammed . | . . . . . Walls Destroyed . | . . . . . Machines Disabled . | . . . . . Actions | -11 -10 -9 -8 -7 --------- Run | Yrd Mat Mat Mat Fac Total 1157 | 63 305 182 357 250 Wait 7 | . 3 . . 4 Move 910 | 46 218 149 300 197 Hop 4 | . . 2 2 . Pick Up 54 | 11 19 10 10 4 Fast Attach 18 | 1 2 . 7 8 Attach 33 | 5 6 10 7 5 Detach . | . . . . . Swap 15 | . 10 . 3 2 Drop 27 | . 15 2 6 4 Fire 75 | . 31 9 16 19 Melee 13 | . . . 6 7 Ram 1 | . 1 . . . Kick . | . . . . . Crush . | . . . . . Escape Stasis . | . . . . . Rewire . | . . . . . Trap . | . . . . . Miscellaneous . | . . . . . Route ------- -11/Scrapyard -10/Materials (discovered 2 exits: [*Mat] / [*Min]) -9/Materials -8/Materials -7/Factory History --------- Turn | Location | Event 17 | -11/Scrapyard | Discovered new exit (range 16) 54 | -11/Scrapyard | Entered Materials 217 | -10/Materials | Discovered new exit (range 8) 245 | -10/Materials | Core integrity fell below 50% 331 | -10/Materials | Discovered new exit (range 9) 356 | -10/Materials | Lost 5 parts (1p2n2w) 374 | -10/Materials | Entered another Materials area 374 | -9/Materials | Evolved 2 slots: Propulsion x2 455 | -9/Materials | Lost 6 parts (1p4n1w) 473 | -9/Materials | Discovered new exit (range 16) 478 | -9/Materials | Entered another Materials area 478 | -8/Materials | Evolved 2 slots: Power x1, Utility x1 554 | -8/Materials | Discovered new exit (range 16) 701 | -8/Materials | Core integrity fell below 50% 716 | -8/Materials | Entered Factory 716 | -7/Factory | Evolved 2 slots: Propulsion x2 741 | -7/Factory | Lost 10 parts (3p6n1u) 1051 | -7/Factory | Core integrity fell below 50% 1080 | -7/Factory | Core integrity fell below 20% 1111 | -7/Factory | Destroyed by P-60 Hacker with Shock Rifle Last Messages --------------- 01057_ Lgt. Nuclear Core destroyed. 01064_ S-27 Virus destroyed. 01067_ Pressure Siphon disabled. 01070_ Pulse Rifle destroyed. 01070_ Com. Wheel destroyed. 01076_ Lgt. Deuterium Engine destroyed. 01080_ Acquired Arc Projector. 01086_ The unstable cave ceiling collapses. 01088_ Blade Saw destroyed. 01093_ Nuclear Reactor explodes. 01093_ U-05 Engineer destroyed. 01093_ Acquired Hvy. Flail. 01099_ The unstable cave ceiling collapses. 01103_ U-05 Engineer lays Concrete. 01105_ The unstable cave ceiling collapses. 01106_ U-05 Engineer lays Concrete. 01108_ Hacking Suite destroyed. 01109_ U-05 Engineer builds a Wall. 01110_ P-60 Hacker knocked back. 01110_ R-06 Scavenger collects Wheel. Map ----- +----------------------------------------------------+ | ?????????????????????????????????????????????????? | | ?????????????????????????????????????????????????? | | ?????????????????????????????????????????????????? | | ?????????????????????????????????????????????????? | | ?????????????????????????????????????????????????? | | ?????????????????????????????????????????????????? | | ?????????????????? ????????????????????????????? | | ???????????????? ????????????????????????????? | | ????????????????" ???????????????????????????? | | ????????????????" ???????????????????????????? | | ???????????????"" ???????????????????????????? | | ????????? ??? """ ???????????????????????????? | | ??? ?? ??? !#???????????????????????????? | | ??# ??" ??" """ #???????????????????????????? | | ??# ?"" """ """ ###############?????????????? | | ??# ?"" """ """ #! ??????????????? | | ?## """ """ # """" ! ""???????????????? | | ?# # """""" """??????????????? | | ## """ """ """ # ""F "" """??????????????? | | # """ """ """ # """ ?????????????? | | """ """ ""% / u """ """??????????????? | | ?# """ """ """ # """ """ #??????????? | | ?# # """ """ #??????????? | | ?# # p #??????????? | | ?# %% ##### Y #####???????????? | | ?# ##! @ #??????????????? | | ?# % # #?????????????? | | ?# ##### # #?????????????? | | ?# #???# #?????????????? | | #####+###+##### # #?????????????? | | + # #?????????????? | | "" # # ##?????????????? | | ** "" # #??????????????? | | ** T" + #??????????????? | | * "" ####### #??????????????? | | ! "" #?????# g #??????????????? | | ###???# r #??????????????? | | ! ] # ###?### g# ###??????????????? | | ######""" """#???# # u ????????????????? | | ????## ##??#### ##????????????????? | | ????#" "#?????? #?????????????????? | | ????#" "####### #?????????????????? | | ????#" " #?????????????????? | | ????#" " #?????????????????? | | ????#"% #?????????????????? | | ????## """ """ +?????????????????? | | ?????# """ """ #?????????????????? | | ?????# ! """ """ [ +?????????????????? | | ?????# = % / #?????????????????? | | ?????# # #?????????????????? | +----------------------------------------------------+ Best States ------------- Heat Dissipation 34 Coolant Potential 65 Energy Generation 24 Energy Capacity 450 Matter Stores 300 Matter Capacity 300 Sight Range 16 Terrain Scan Density 10 ECM Strength 2 Evasion (%) 63 Targeting Accuracy 6 Offensive Hacking 10 Item Schematics ----------------- None Robot Schematics ------------------ None Fabricated ------------ Nothing Alien Tech Used ----------------- None Achievements -------------- None Challenges ------------ None Game ------ Seed LauncherDimensionalWeb Manual? 0 Play Time 00:24:33 Cumulative 91.6 hours Start 2024.07.10 @ 21:30:32 End 2024.07.10 @ 21:54:43 Sessions 1 Manual Loads 0 Difficulty Rogue Special Mode None Game No. 133 Rogue 133 Adventurer 0 Explorer 0 Win Type - Total 0 Types 0/0/0/0/0/0/0/0/0 Lore% 39 Gallery% 54 Achievement% 34 Wizard Run 0 Options --------- Layout 0 ASCII 0 Keyboard 0 Movement Mouse Keybinds 0 Fullscreen 1 Font 24/Smallcaps Map View 76x50 Zoom Use 0% Tactical HUD 1 Map Filters NONE Filters NONE Steam 1 RUN: fbc747e9-6913-4429-800e-bf19e826fb9d